bitfinex-derivatives/quotes_SOLF0:USTF0_20260207
["timestamp","ask_amount","ask_price","bid_price","bid_amount"]
[1770430942420,10.3276,87.205,87.161,3.69344865]
[1770430942818,13.97620317,87.205,87.161,3.69344865]
[1770430943023,3.64860317,87.204,87.161,3.69344865]
[1770430945824,3.64860317,87.204,87.164,3.69344865]
[1770430949123,3.64860317,87.204,87.166,10.3321]
[1770430949719,3.64860317,87.204,87.164,3.69344865]
[1770430953426,3.64860317,87.219,87.167,3.69344865]
[1770430953926,3.64860317,87.216,87.168,10.3318]
[1770430954326,3.64860317,87.206,87.155,10.3333]
[1770430954629,20.6402,87.268,87.122,3.69344865]
[1770430954630,4.72006448,87.17,87.122,3.69344865]
[1770430954819,4.72006448,87.18,87.122,3.69344865]
[1770430955018,4.72006448,87.19,87.131,12.58289095]
[1770430955528,4.72006448,87.18,87.124,12.58257403]
[1770430955923,4.72006448,87.19,87.131,12.58257403]
[1770430956827,10.3298,87.186,87.132,12.58259816]
[1770430958124,10.3298,87.186,87.14,4.72006448]
[1770430958322,10.3286,87.196,87.141,12.6215367]
[1770430959932,10.3302,87.183,87.141,12.6215367]
[1770430963132,10.3292,87.191,87.141,12.6215367]
[1770430963332,4.72006448,87.19,87.141,12.6215367]
[1770430963735,10.3311,87.175,87.141,12.6215367]
[1770430964034,4.72006448,87.18,87.121,12.60236088]
[1770430966030,4.72006448,87.19,87.13,4.72006448]
[1770430966328,4.72006448,87.19,87.131,12.62267614]
[1770430966729,10.3298,87.186,87.132,10.3361]
[1770430966930,10.3298,87.186,87.133,12.62267614]
[1770430967729,10.3298,87.186,87.136,10.3356]
[1770430967933,10.3298,87.186,87.141,12.61895676]
[1770430968133,10.3285,87.197,87.141,12.61895676]
[1770430968335,4.72006448,87.21,87.151,12.61895676]
[1770430969746,10.3273,87.207,87.152,12.61035722]
[1770430970851,10.3295,87.188,87.152,12.61035722]
[1770430973056,10.3284,87.198,87.152,12.61035722]
[1770430973364,4.72006448,87.22,87.161,12.60184492]
[1770430974762,10.3274,87.206,87.161,12.60184492]
[1770430980361,4.72006448,87.2,87.148,12.6166487]
[1770430980661,10.3293,87.19,87.148,12.6166487]
[1770430981470,10.3284,87.198,87.151,12.58089125]
[1770430982061,20.648,87.235,87.118,34.69694818]
[1770430982062,10.3274,87.207,87.16,4.71759892]
[1770430982259,194.9976,87.262,87.142,28.30671067]
[1770430982260,4.71759892,87.23,87.171,12.58089125]
[1770430982960,4.71759892,87.23,87.119,20.6754]
[1770430982961,10.3252,87.225,87.18,4.71759892]
[1770430983165,4.71759892,87.26,87.191,12.58089125]
[1770430983365,10.3215,87.256,87.203,10.3277]
[1770430983665,10.3215,87.256,87.141,20.6701]
[1770430983666,4.71759892,87.27,87.211,12.58906392]
[1770430983867,4.71759892,87.25,87.197,12.58906392]
[1770430984364,4.71759892,87.25,87.117,160.8115]
[1770430984365,4.71759892,87.23,87.17,4.71759892]
[1770430985854,10.3257,87.221,87.17,15.04919892]
[1770430986059,4.71759892,87.22,87.16,4.71759892]
[1770430986360,4.71759892,87.22,87.161,6.26699307]
[1770430987568,10.3271,87.209,87.164,6.27516435]
[1770430987764,10.3271,87.209,87.171,6.27516435]
[1770430989867,10.3259,87.219,87.171,6.27516435]
[1770430990161,10.3259,87.219,87.181,6.28644055]
[1770430991562,4.71759892,87.24,87.181,6.28644055]
[1770430991563,10.3248,87.228,87.181,6.28644055]
[1770430992667,10.3257,87.221,87.181,6.28644055]
[1770430992862,4.71759892,87.22,87.167,6.27724753]
[1770430993562,4.71759892,87.23,87.167,6.27724753]
[1770430993769,10.3259,87.219,87.167,6.27724753]
[1770430994561,10.3259,87.219,87.168,10.3318]
[1770430994763,10.3259,87.219,87.169,6.27076203]
[1770430994959,10.3268,87.211,87.169,6.27076203]
[1770430998971,10.3259,87.219,87.18,4.71759892]
[1770430999269,4.71759892,87.23,87.181,6.28492203]
[1770431000671,10.3256,87.222,87.181,6.28492203]
[1770431002362,4.71759892,87.22,87.181,6.28492203]
[1770431002568,4.71759892,87.2,87.154,6.18521693]
[1770431003771,10.3289,87.193,87.154,6.18521693]
[1770431005277,10.3276,87.204,87.161,6.23959134]
[1770431006566,10.3285,87.197,87.161,6.23959134]
[1770431008166,10.3295,87.188,87.141,6.24527603]
[1770431009878,10.3308,87.178,87.141,6.24527603]
[1770431013184,10.3298,87.186,87.141,6.24527603]
[1770431013484,4.71759892,87.2,87.141,6.24527603]
[1770431014778,10.3286,87.197,87.143,6.24728456]
[1770431017586,10.3286,87.197,87.14,4.71759892]
[1770431017587,10.3286,87.197,87.145,6.24797385]
[1770431018078,10.3274,87.206,87.154,6.24797385]
[1770431019587,10.3274,87.206,87.15,4.71759892]
[1770431019588,10.3274,87.206,87.156,6.25292566]
[1770431024393,10.3283,87.199,87.156,6.25292566]
[1770431025187,10.3271,87.209,87.156,6.25292566]
[1770431025381,4.71759892,87.23,87.161,6.27955862]
[1770431025793,10.3259,87.219,87.168,6.27955862]
[1770431026285,10.3259,87.219,87.17,4.71759892]
[1770431026687,10.3259,87.219,87.171,6.27955862]
[1770431027285,10.3259,87.219,87.173,6.26716221]
[1770431027694,10.3249,87.227,87.173,6.26716221]
[1770431028992,4.71759892,87.22,87.173,6.26716221]
[1770431029192,1.9962427,87.248,87.173,6.26716221]
[1770431029193,4.71759892,87.21,87.173,6.26716221]
[1770431029391,4.71759892,87.22,87.173,6.26716221]
[1770431030690,10.3264,87.214,87.173,6.26716221]
[1770431040697,4.71759892,87.2,87.162,6.26752616]
[1770431041005,4.71759892,87.21,87.162,6.26752616]
[1770431041500,4.71648888,87.22,87.162,6.26752616]
[1770431041702,4.71648888,87.23,87.171,6.2702375]
[1770431042102,10.3256,87.221,87.171,6.2702375]
[1770431043607,10.3261,87.217,87.171,6.2702375]
[1770431044796,10.3261,87.217,87.173,6.27548791]
[1770431048908,10.3251,87.226,87.173,6.27548791]
[1770431049106,4.71648888,87.26,87.191,6.2696381]
[1770431049312,4.71648888,87.25,87.191,6.2696381]
[1770431050207,1.99587061,87.268,87.191,6.2696381]
[1770431050408,4.71648888,87.25,87.191,6.2696381]
[1770431050706,10.3228,87.245,87.191,6.2696381]
[1770431055910,10.3228,87.245,87.195,6.24608742]
[1770431056807,4.71648888,87.28,87.221,6.24608742]
[1770431057314,4.71648888,87.27,87.221,6.24608742]
[1770431057716,10.3205,87.265,87.221,6.24608742]
[1770431058213,4.71648888,87.26,87.221,6.24608742]
[1770431058610,10.3205,87.265,87.221,6.24608742]
[1770431061315,4.71648888,87.24,87.186,6.21291676]
[1770431061618,4.71648888,87.23,87.186,6.21291676]
[1770431062713,10.325,87.227,87.186,6.21291676]
[1770431062914,4.71648888,87.23,87.186,6.21291676]
[1770431063510,10.3244,87.232,87.186,6.21291676]
[1770431065718,10.3254,87.223,87.186,6.21291676]
[1770431067619,10.3237,87.237,87.186,6.21291676]
[1770431070120,4.71648888,87.24,87.186,6.21291676]
[1770431070821,10.3228,87.245,87.187,10.3296]
[1770431071025,10.3228,87.245,87.188,6.22850571]
[1770431071225,10.3218,87.254,87.201,6.23110615]
[1770431071616,10.3218,87.254,87.203,10.3277]
[1770431071817,10.3218,87.254,87.204,6.23110615]
[1770431074822,10.3218,87.254,87.205,10.3275]
[1770431075025,10.3218,87.254,87.206,6.2251689]
[1770431076528,10.3218,87.254,87.209,6.2316851]
[1770431076728,4.71648888,87.26,87.209,6.2316851]
[1770431076922,4.71648888,87.26,87.182,28.30671067]
[1770431076923,10.3206,87.264,87.211,6.2316851]
[1770431077930,10.3206,87.264,87.216,6.22406539]
[1770431079528,10.3206,87.264,87.221,6.24698799]
[1770431083130,10.3193,87.275,87.221,6.24698799]
[1770431084232,10.3193,87.275,87.231,6.24378126]
[1770431089539,10.3193,87.275,87.2,28.30671067]
[1770431089540,10.3176,87.289,87.24,10.92621993]
[1770431089730,10.3176,87.289,87.232,10.3243]
[1770431090032,20.6262,87.327,87.232,10.3243]
[1770431090033,4.71648888,87.28,87.233,6.20973105]
[1770431091739,10.3176,87.289,87.236,6.20639241]
[1770431091933,4.71648888,87.3,87.241,6.20639241]
[1770431093031,10.3166,87.298,87.252,6.20639241]
[1770431100136,10.3154,87.308,87.255,6.18990253]
[1770431100335,10.3154,87.308,87.261,6.18990253]
[1770431100847,10.3142,87.318,87.271,6.18990253]
[1770431102544,20.6151,87.375,87.291,6.18782974]
[1770431102545,4.70488471,87.35,87.291,6.18782974]
[1770431103345,10.3118,87.338,87.291,6.18782974]
[1770431104750,4.70488471,87.37,87.311,6.19379612]
[1770431104940,1.99313286,87.388,87.331,6.19379612]
[1770431105139,4.70488471,87.39,87.331,6.19379612]
[1770431105345,10.3075,87.375,87.331,6.19379612]
[1770431105547,4.70488471,87.39,87.331,6.19379612]
[1770431105752,10.3063,87.385,87.331,6.19379612]
[1770431105939,4.70488471,87.4,87.34,4.70488471]
[1770431106141,4.70488471,87.4,87.341,6.17163641]
[1770431106750,10.3061,87.386,87.341,6.17163641]
[1770431107146,4.70488471,87.38,87.331,6.17163661]
[1770431107747,4.70488471,87.39,87.331,6.17163661]
[1770431108047,4.70488471,87.41,87.351,6.33062631]
[1770431108744,4.70488471,87.38,87.331,6.33065137]
[1770431108944,4.70488471,87.37,87.331,6.33065137]
[1770431109651,4.70488471,87.38,87.331,6.33065137]
[1770431109955,15.01178471,87.38,87.331,6.33065137]
[1770431110558,4.70488471,87.39,87.331,6.33065137]
[1770431111045,10.3058,87.389,87.331,6.33065137]
[1770431112956,10.3058,87.389,87.317,10.3141]
[1770431112957,10.3058,87.389,87.341,6.25341617]
[1770431114362,10.3058,87.389,87.262,160.5448]
[1770431114363,4.70488471,87.41,87.351,6.27626251]
[1770431114856,20.595,87.46,87.37,4.70488471]
[1770431114857,10.3022,87.42,87.37,4.70488471]
[1770431115056,4.70488471,87.44,87.391,6.27626251]
[1770431115258,4.70488471,87.45,87.391,6.27626251]
[1770431115457,10.3001,87.438,87.391,6.27626251]
[1770431115656,20.5876,87.491,87.391,6.27626251]
[1770431115859,4.70488471,87.46,87.401,6.23612641]
[1770431116063,10.2984,87.452,87.401,6.23612641]
[1770431116363,4.70488471,87.46,87.401,6.23612641]
[1770431116563,10.2966,87.467,87.411,6.23612641]
[1770431117165,10.2953,87.478,87.411,6.23612641]
[1770431117461,10.2953,87.478,87.345,160.3916]
[1770431117462,4.70488471,87.48,87.431,6.21205137]
[1770431118060,1.99028307,87.509,87.431,6.21205137]
[1770431118061,4.70488471,87.47,87.431,6.21205137]
[1770431118759,14.99998471,87.48,87.431,6.21205137]
[1770431118962,4.70488471,87.47,87.431,6.21205137]
[1770431120159,4.70488471,87.48,87.431,6.21205137]
[1770431120766,20.5736,87.551,87.431,6.21205137]
[1770431120767,4.70488471,87.49,87.431,6.21205137]
[1770431121060,180.5899,87.551,87.431,6.21205137]
[1770431121061,4.70488471,87.48,87.431,6.21205137]
[1770431121260,4.70488471,87.47,87.431,6.21205137]
[1770431122767,10.2965,87.468,87.431,6.21205137]
[1770431123370,4.70488471,87.46,87.404,6.24241476]
[1770431124869,10.2975,87.459,87.404,6.24241476]
[1770431125472,1.99004406,87.519,87.404,6.24241476]
[1770431125473,15.00358471,87.45,87.404,6.24241476]
[1770431125667,4.70488471,87.44,87.387,6.08622814]
[1770431125858,1.99004406,87.519,87.387,6.08622814]
[1770431125859,4.70488471,87.43,87.387,6.08622814]
[1770431126567,4.70488471,87.44,87.387,6.08622814]
[1770431126872,4.70488471,87.45,87.387,6.08622814]
[1770431127071,4.70488471,87.45,87.39,4.70488471]
[1770431127372,4.70488471,87.45,87.391,6.08622814]
[1770431127567,4.70488471,87.46,87.401,6.13569381]
[1770431127966,4.70488471,87.47,87.411,6.13569381]
[1770431128371,4.70488471,87.48,87.421,6.13569381]
[1770431128672,1.99004406,87.519,87.421,6.13569381]
[1770431128673,4.70488471,87.47,87.421,6.13569381]
[1770431129272,15.00228471,87.46,87.407,6.12259514]
[1770431129472,4.70488471,87.45,87.407,6.12259514]
[1770431130769,10.2988,87.448,87.407,6.12259514]
[1770431132076,10.2977,87.458,87.407,6.12259514]
[1770431133076,10.2966,87.468,87.409,6.11739068]
[1770431133871,10.2966,87.468,87.411,6.12575851]
[1770431135372,10.2954,87.478,87.416,6.09799875]
[1770431135572,1.99004406,87.519,87.416,6.09799875]
[1770431135573,12.56356033,87.5,87.416,6.09799875]
[1770431136777,10.2939,87.49,87.434,6.09791877]
[1770431137074,12.56356033,87.5,87.434,6.09791877]
[1770431137282,10.2888,87.533,87.475,6.08144289]
[1770431137879,10.2898,87.525,87.475,6.08144289]
[1770431138372,20.5686,87.572,87.478,6.08144289]
[1770431138578,7.016e-05,87.518,87.478,6.08144289]
[1770431138975,7.016e-05,87.518,87.499,6.08144289]
[1770431145384,7.016e-05,87.518,87.476,6.0851743]
[1770431145990,7.016e-05,87.518,87.446,6.0851743]
[1770431146184,12.56356033,87.51,87.446,6.0851743]
[1770431147189,12.56356033,87.49,87.43,6.0851743]
[1770431147794,10.2964,87.469,87.43,6.0851743]
[1770431151585,10.2976,87.459,87.43,6.0851743]
[1770431152296,10.2976,87.459,87.407,10.3036]
[1770431152297,10.2976,87.459,87.416,6.07430243]
[1770431154087,10.2986,87.45,87.402,6.06798239]
[1770431154290,12.56356033,87.47,87.402,6.06798239]
[1770431157003,10.2986,87.45,87.402,6.06798239]
[1770431157502,12.56356033,87.47,87.402,6.06798239]
[1770431158696,10.2975,87.46,87.402,6.06798239]
[1770431159697,10.2961,87.472,87.406,6.35015693]
[1770431160701,12.56356033,87.51,87.42,6.35015693]
[1770431161293,10.2952,87.479,87.42,6.35015693]
[1770431161499,12.56356033,87.51,87.42,6.35015693]
[1770431161701,7.016e-05,87.518,87.431,6.37373398]
[1770431162802,10.2915,87.511,87.452,6.37373398]
[1770431163002,7.016e-05,87.518,87.452,6.37373398]
[1770431163807,12.55019629,87.5,87.438,6.36589951]
[1770431164804,10.2946,87.484,87.438,6.36589951]
[1770431165606,7.016e-05,87.518,87.42,6.36134787]
[1770431165607,12.55019629,87.48,87.42,6.36134787]
[1770431167309,12.55019629,87.48,87.435,6.3681449]
[1770431167602,10.2942,87.487,87.435,6.3681449]
[1770431171003,10.2956,87.475,87.435,6.3681449]
[1770431171210,10.2956,87.475,87.42,6.36982115]
[1770431173411,10.2956,87.475,87.4,12.55019629]
[1770431173412,10.2944,87.486,87.424,6.36617977]
[1770431173917,12.55019629,87.5,87.424,6.36617977]
[1770431174816,12.55019629,87.5,87.425,6.36617977]
[1770431175718,10.2943,87.487,87.432,6.36348182]
[1770431176718,10.2943,87.487,87.436,6.36348182]
[1770431178517,10.2943,87.487,87.44,6.35622198]
[1770431178717,7.016e-05,87.518,87.44,6.35622198]
[1770431178718,10.293,87.498,87.44,6.35622198]
[1770431179016,7.016e-05,87.518,87.454,10.298]
[1770431179221,7.016e-05,87.518,87.455,6.35622198]
[1770431180819,10.2918,87.508,87.457,6.35456381]
[1770431181925,10.2918,87.508,87.458,16.68492086]
[1770431182124,10.2918,87.508,87.459,6.38732086]
[1770431183030,12.55019629,87.48,87.411,6.38732086]
[1770431183825,10.2959,87.473,87.419,6.39686251]
[1770431184326,10.2968,87.466,87.419,6.39686251]
[1770431185624,12.55019629,87.48,87.405,6.3907422]
[1770431187226,10.2966,87.467,87.407,6.3907422]
[1770431187432,12.55019629,87.48,87.407,6.3907422]
[1770431187628,12.55019629,87.5,87.407,6.3907422]
[1770431187829,12.55019629,87.48,87.407,6.3907422]
[1770431188829,10.2965,87.468,87.409,6.40054083]
[1770431189844,10.2965,87.468,87.416,10.3025]
[1770431190030,12.55019629,87.48,87.409,6.40054083]
[1770431190031,10.2975,87.46,87.409,6.40054083]
[1770431190233,12.55019629,87.48,87.409,6.40054083]
[1770431190424,12.55019629,87.46,87.409,6.40054083]
[1770431191831,10.2987,87.45,87.409,6.40054083]
[1770431192137,10.2987,87.45,87.397,10.3048]
[1770431192338,10.2987,87.45,87.397,16.67920926]
[1770431192533,10.2999,87.439,87.397,6.37440926]
[1770431193534,10.3015,87.426,87.384,6.34914801]
[1770431194038,12.55019629,87.46,87.384,6.34914801]
[1770431194835,10.3003,87.435,87.384,6.34914801]
[1770431196936,10.3017,87.424,87.366,6.34446584]
[1770431198341,10.3017,87.424,87.368,6.35899496]
[1770431201441,10.3017,87.424,87.371,10.3078]
[1770431201742,10.3017,87.424,87.372,6.37271373]
[1770431202937,10.3021,87.42,87.372,6.37271373]
[1770431203439,10.3009,87.431,87.375,10.3073]
[1770431203638,12.55019629,87.44,87.372,6.37271373]
[1770431203945,10.2997,87.441,87.393,10.3053]
[1770431204146,12.55019629,87.46,87.394,6.34130671]
[1770431205044,12.55019629,87.46,87.346,6.34130671]
[1770431205342,12.55019629,87.44,87.346,6.34130671]
[1770431205546,10.3006,87.433,87.38,6.32952249]
[1770431205743,12.55019629,87.46,87.38,6.32952249]
[1770431207746,10.3003,87.436,87.386,6.31650624]
[1770431209153,10.3012,87.428,87.386,6.31650624]
[1770431209345,12.55019629,87.46,87.386,6.31650624]
[1770431209650,4.69227548,87.44,87.386,6.31650624]
[1770431210852,10.2999,87.439,87.386,6.31650624]
[1770431213752,10.3013,87.427,87.386,6.31650624]
[1770431216551,10.3025,87.417,87.386,6.31650624]
[1770431219258,10.3013,87.427,87.386,6.31650624]
[1770431220955,4.69227548,87.41,87.366,6.30491402]
[1770431221555,10.3049,87.396,87.366,6.30491402]
[1770431222161,4.69227548,87.38,87.346,6.30631324]
[1770431223061,10.307,87.379,87.346,6.30631324]
[1770431226852,12.58539691,87.42,87.346,6.30631324]
[1770431228255,10.3034,87.409,87.356,6.30372298]
[1770431228460,12.58539691,87.44,87.356,6.30372298]
[1770431229561,12.58539691,87.44,87.36,6.29435899]
[1770431229765,12.58539691,87.42,87.36,6.29435899]
[1770431231661,10.3037,87.407,87.36,6.29435899]
[1770431233761,12.58539691,87.42,87.34,6.21831283]
[1770431235068,10.3049,87.396,87.34,6.21831283]
[1770431235370,12.58539691,87.42,87.34,6.21831283]
[1770431237062,10.3068,87.381,87.34,6.21831283]
[1770431238557,10.3076,87.374,87.34,6.21831283]
[1770431241174,10.3087,87.364,87.34,1.283e-05]
[1770431242073,10.3078,87.372,87.34,1.283e-05]
[1770431242466,1.86217633,87.38,87.34,1.283e-05]
[1770431243775,10.3073,87.377,87.34,1.283e-05]
[1770431249584,1.86217633,87.38,87.34,1.283e-05]
[1770431254077,1.86217633,87.38,87.34,4.69736018]
[1770431255371,1.86217633,87.38,87.34,1.283e-05]
[1770431258179,1.86217633,87.38,87.34,4.69736018]
[1770431258681,1.86217633,87.38,87.34,1.283e-05]
[1770431259269,1.86217633,87.38,87.278,34.69694818]
[1770431259270,1.88953037,87.372,87.329,3.88918136]
[1770431259478,1.99237972,87.408,87.329,3.88918136]
[1770431259479,1.88953037,87.369,87.329,3.88918136]
[1770431263285,1.8888778,87.359,87.316,3.88918136]
[1770431263488,1.8888778,87.349,87.3,3.88918136]
[1770431264780,1.8888778,87.362,87.311,3.88918136]
[1770431265382,1.8888778,87.362,87.321,3.88918136]
[1770431265688,1.8038424,87.379,87.331,3.88918136]
[1770431267084,1.8038424,87.379,87.332,10.3125]
[1770431267283,1.8038424,87.379,87.333,3.88918136]
[1770431268082,1.85824349,87.377,87.333,3.88918136]
[1770431268591,1.85824349,87.377,87.336,3.88918136]
[1770431270986,1.93155436,87.389,87.341,3.88918136]
[1770431271583,10.3061,87.387,87.341,3.88918136]
[1770431271786,12.22190308,87.387,87.341,3.88918136]
[1770431271983,1.91580308,87.386,87.341,3.88918136]
[1770431272596,10.3063,87.385,87.341,3.88918136]
[1770431274793,12.23986337,87.385,87.341,3.88918136]
[1770431275690,10.3071,87.378,87.341,3.88918136]
[1770431277208,10.308,87.371,87.341,3.88918136]
[1770431277394,10.308,87.371,87.32,4.69734735]
[1770431277395,1.88507579,87.369,87.33,3.88918136]
[1770431277590,1.88507579,87.369,87.319,3.88918136]
[1770431277991,4.69734735,87.36,87.319,3.88918136]
[1770431278697,1.88507579,87.359,87.319,3.88918136]
[1770431279905,1.90118562,87.349,87.306,3.88918136]
[1770431280294,10.3108,87.347,87.306,3.88918136]
[1770431280500,1.90118562,87.363,87.311,3.88918136]
[1770431280801,1.90118562,87.363,87.321,3.88918136]
[1770431280993,22.59957972,87.408,87.323,3.88918136]
[1770431280994,1.90118562,87.375,87.323,3.88918136]
[1770431281800,1.90118562,87.375,87.325,3.88918136]
[1770431281996,1.89901627,87.369,87.325,3.88918136]
[1770431282189,1.89901627,87.359,87.315,3.88918136]
[1770431282390,1.89901627,87.372,87.321,3.88918136]
[1770431283501,1.89901627,87.372,87.331,3.88918136]
[1770431283691,10.3065,87.383,87.331,3.88918136]
[1770431284797,10.3065,87.383,87.333,3.88918136]
[1770431285198,1.95177916,87.382,87.333,3.88918136]
[1770431285802,1.95177916,87.382,87.335,4.02634628]
[1770431289705,1.94313262,87.404,87.341,3.88275679]
[1770431289904,1.94313262,87.404,87.351,3.88275679]
[1770431290305,1.94313262,87.404,87.354,3.88275679]
[1770431290306,10.3042,87.402,87.354,3.88275679]
[1770431290701,10.3042,87.402,87.318,34.69694818]
[1770431290702,1.94313262,87.389,87.342,3.88275679]
[1770431290903,10.3036,87.407,87.352,3.88275679]
[1770431291103,12.24673262,87.407,87.352,3.88275679]
[1770431291304,1.94313262,87.406,87.352,3.88275679]
[1770431291702,1.94313262,87.406,87.354,3.88275679]
[1770431292305,4.69768301,87.4,87.354,3.88275679]
[1770431292506,2.01533386,87.396,87.354,3.88275679]
[1770431293303,1.97440427,87.392,87.354,3.88275679]
[1770431295024,10.3043,87.402,87.354,3.88275679]
[1770431295721,10.3043,87.402,87.357,3.88275679]
[1770431296020,1.97440427,87.404,87.361,3.88275679]
[1770431297426,4.69768301,87.4,87.361,3.88275679]
[1770431298125,1.97440427,87.404,87.361,3.88275679]
[1770431299126,6.69837012,87.39,87.348,3.88275679]
[1770431299328,2.00068711,87.389,87.348,3.88275679]
[1770431299726,12.29588295,87.385,87.348,3.88275679]
[1770431300228,4.69768301,87.38,87.348,3.88275679]
[1770431301832,4.69768301,87.37,87.333,3.88275679]
[1770431302434,1.94769042,87.374,87.333,3.88275679]
[1770431305632,10.3077,87.373,87.333,3.88275679]
[1770431308335,10.3066,87.383,87.333,3.88275679]
[1770431308940,12.26101812,87.383,87.333,3.88275679]
[1770431309136,1.95441812,87.382,87.333,3.88275679]
[1770431309537,10.3054,87.393,87.344,3.88275679]
[1770431309940,1.95625696,87.394,87.351,3.88275679]
[1770431310435,1.95625696,87.409,87.361,3.88275679]
[1770431311741,1.962946,87.406,87.361,3.88275679]
[1770431311941,1.962946,87.418,87.361,3.88275679]
[1770431313237,1.962946,87.409,87.361,3.88275679]
[1770431313840,1.962946,87.409,87.365,3.88275679]
[1770431316648,1.962946,87.409,87.367,3.83595642]
[1770431316847,12.31176724,87.417,87.367,3.83595642]
[1770431317047,2.00926724,87.416,87.367,3.83595642]
[1770431317747,4.69768301,87.41,87.368,14.14415642]
[1770431317943,2.00926724,87.416,87.369,3.83595642]
[1770431318343,1.9185038,87.411,87.369,3.83595642]
[1770431319143,4.69768301,87.41,87.354,3.83595642]
[1770431319342,1.9185038,87.409,87.354,3.83595642]
[1770431320845,10.3039,87.405,87.354,3.83595642]
[1770431321046,12.20113663,87.405,87.354,3.83595642]
[1770431322653,10.3047,87.398,87.354,3.83595642]
[1770431327356,12.39275345,87.398,87.354,3.83595642]
[1770431327952,12.37384193,87.392,87.354,3.83595642]
[1770431328353,2.06834193,87.387,87.33,8.53363943]
[1770431328561,2.06834193,87.379,87.33,3.83595642]
[1770431329358,4.69768301,87.38,87.332,3.83595642]
[1770431329359,2.06834193,87.377,87.332,3.83595642]
[1770431329953,1.95294221,87.369,87.332,3.83595642]
[1770431332062,1.95294221,87.369,87.321,3.83595642]
[1770431332365,1.99718346,87.359,87.31,3.83595642]
[1770431333770,10.31,87.353,87.31,3.83595642]
[1770431335863,1.99718346,87.359,87.311,3.83595642]
[1770431336168,1.99718346,87.359,87.313,3.83595642]
[1770431336769,1.99718346,87.359,87.321,3.83595642]
[1770431337367,2.01307289,87.37,87.323,3.83595642]
[1770431338873,2.01307289,87.37,87.325,3.83595642]
[1770431339775,12.32117289,87.37,87.325,3.83595642]
[1770431340073,2.01307289,87.37,87.325,3.83595642]
[1770431341467,2.02236682,87.369,87.325,3.83595642]
[1770431341670,2.02236682,87.339,87.298,3.83595642]
[1770431341971,2.02236682,87.339,87.286,3.83595642]
[1770431341972,4.69768301,87.33,87.286,3.83595642]
[1770431342572,2.02236682,87.329,87.286,3.83595642]
[1770431342775,2.02236682,87.319,87.274,3.83595642]
[1770431343174,2.02236682,87.316,87.274,3.83595642]
[1770431345973,180.9413,87.381,87.263,3.82984225]
[1770431345974,1.8701171,87.309,87.263,3.82984225]
[1770431346574,1.87008923,87.306,87.263,3.82984225]
[1770431347968,4.70634313,87.3,87.25,3.801032]
[1770431348186,1.93904793,87.289,87.25,3.801032]
[1770431348675,1.93904778,87.299,87.251,3.801032]
[1770431350777,1.9232549,87.296,87.251,3.801032]
[1770431352371,1.87703729,87.308,87.251,3.801032]
[1770431353883,4.70634313,87.32,87.261,3.801032]
[1770431354090,1.91935729,87.322,87.281,3.801032]
[1770431354386,6.62570042,87.33,87.281,3.801032]
[1770431354689,1.91935729,87.33,87.281,3.801032]
[1770431355885,6.62570042,87.33,87.281,3.801032]
[1770431356186,1.91935729,87.33,87.281,3.801032]
[1770431356983,1.91935729,87.33,87.283,3.801032]
[1770431357188,1.96490274,87.355,87.301,3.801032]
[1770431358791,1.96490274,87.355,87.303,3.801032]
[1770431359383,1.96490274,87.355,87.316,3.801032]
[1770431359689,2.08508771,87.369,87.321,3.801032]
[1770431359890,2.08508771,87.383,87.331,3.801032]
[1770431360078,2.08508771,87.383,87.333,3.801032]
[1770431360484,2.08508771,87.383,87.341,3.801032]
[1770431361582,2.05155225,87.369,87.26,3.801032]
[1770431361781,2.05155225,87.359,87.301,3.801032]
[1770431362293,2.05155225,87.359,87.31,4.70634313]
[1770431362492,2.05155225,87.359,87.311,3.801032]
[1770431362891,10.3069,87.38,87.331,3.801032]
[1770431363091,2.05155225,87.386,87.331,3.801032]
[1770431363487,10.3065,87.383,87.331,3.801032]
[1770431363691,4.70634313,87.38,87.331,3.801032]
[1770431364692,10.3065,87.383,87.331,3.801032]
[1770431365096,10.3075,87.375,87.331,3.801032]
[1770431365798,10.3085,87.366,87.311,3.801032]
[1770431368801,12.35052182,87.366,87.311,3.801032]
[1770431370603,2.00624962,87.359,87.311,3.801032]
[1770431372302,2.00249255,87.356,87.311,3.801032]
[1770431373699,10.3098,87.355,87.311,3.801032]
[1770431374099,12.31083384,87.355,87.311,3.801032]
[1770431375703,1.95242462,87.354,87.311,3.801032]
[1770431384601,2.02107982,87.378,87.321,3.6808551]
[1770431385706,2.02107982,87.378,87.325,3.6808551]
[1770431387507,15.01324313,87.38,87.329,3.6808551]
[1770431388912,15.01324313,87.38,87.332,3.6808551]
[1770431392916,17.01595871,87.38,87.332,3.6808551]
[1770431394221,1.88133076,87.379,87.332,3.6808551]
[1770431394526,10.3071,87.378,87.332,3.6808551]
[1770431394816,4.70634313,87.4,87.341,3.6808551]
[1770431395024,1.88133076,87.404,87.351,3.6808551]